[Event "28th Bosnjaci Open 2024"]
[Site "Bosnjaci"]
[Date "2024.01.09"]
[Round "9.8"]
[White "Cvitan, Ena"]
[Black "Muratovic, Efim"]
[Result "1/2-1/2"]
[ECO "A43"]
[WhiteElo "2242"]
[BlackElo "2345"]
[Annotator "RC"]
[PlyCount "123"]
[EventDate "2024.01.02"]
[EventType "swiss"]
[EventCountry "CRO"]
[SourceTitle "playchess.com"]
[Source "ChessBase"]
[SourceQuality "1"]
[TimeControl "5400+30"]

1. d4 {[%emt 0:00:04]} c5 {[%emt 0:01:09]} 2. d5 {[%emt 0:00:09]} e6 {[%emt 0:00:05]} 3. e4 {[%emt 0:01:11]} a6 {[%emt 0:01:43]} 4. a4 {[%emt 0:01:52]} d6 {[%emt 0:02:05]} 5. Nc3 {[%emt 0:01:29]} Be7 {[%emt 0:00:33]} 6. Nf3 {[%emt 0:04:54]} e5 {[%emt 0:03:49]} 7. Bd3 {[%emt 0:05:15]} Nf6 {[%emt 0:00:06]} 8. Nd2 {[%emt 0:03:03]} b6 {[%emt 0:03:20]} 9. O-O {[%emt 0:02:08]} O-O {[%emt 0:00:26]} 10. Nc4 {[%emt 0:01:53]} Nbd7 {[%emt 0:00:23]} 11. f4 {[%emt 0:05:26]} exf4 {[%emt 0:01:31]} 12. Bxf4 {[%emt 0:00:10]} Ne8 {[%emt 0:00:22]} 13. Qf3 {[%emt 0:04:02]} f6 {[%emt 0:03:05]} 14. Qg3 {[%emt 0:09:45]} Ne5 {[%emt 0:00:36]} 15. Rab1 {[%emt 0:05:54]} Qc7 {[%emt 0:03:54]} 16. Be3 {[%emt 0:00:19]} Bd7 {[%emt 0:14:43]} 17. Be2 {[%emt 0:06:23]} Bd8 {[%emt 0:08:43]} 18. b3 {[%emt 0:04:03]} Qc8 {[%emt 0:05:55]} 19. Rf2 {[%emt 0:05:49]} Rb8 {[%emt 0:00:36]} 20. Rbf1 {[%emt 0:01:11]} Be7 {[%emt 0:05:56]} 21. Bh5 {[%emt 0:02:30]} b5 {[%emt 0:01:01]} 22. axb5 {[%emt 0:00:21]} axb5 {[%emt 0:00:05]} 23. Nxe5 {[%emt 0:00:20]} dxe5 {[%emt 0:07:50]} 24. Bh6 {[%emt 0:01:05]} Kh8 {[%emt 0:00:03]} 25. d6 {[%emt 0:08:28]} Bd8 {[%emt 0:02:19]} 26. Bxe8 {[%emt 0:09:02]} gxh6 {[%emt 0:00:31]} 27. Bxd7 {[%emt 0:00:28]} Qxd7 {[%emt 0:00:06]} 28. Nd5 {[%emt 0:00:41]} Qxd6 {[%emt 0:01:33]} 29. c4 {[%emt 0:00:08]} bxc4 {[%emt 0:02:00]} 30. bxc4 {[%emt 0:00:01]} Rb7 {[%emt 0:03:29]} 31. Qh3 {[%emt 0:00:41]} Rg7 {[%emt 0:04:51]} 32. Qxh6 {[%emt 0:01:02]} Rg6 {[%emt 0:00:12]} 33. Qh3 {[%emt 0:01:41]} Qa6 {[%emt 0:00:28]} 34. Qe3 {[%emt 0:02:06]} Qxc4 {[%emt 0:00:35]} 35. Rc1 {[%emt 0:00:41]} Qd4 {[%emt 0:00:25]} 36. Rxc5 {[%emt 0:04:00]} Qxe3 {[%emt 0:00:48]} 37. Nxe3 {[%emt 0:00:08]} Bb6 {[%emt 0:00:12]} 38. Rc3 {[%emt 0:00:15]} Ra8 {[%emt 0:00:45]} 39. Kf1 {[%emt 0:02:46]} Ra1+ {[%emt 0:04:26]} 40. Ke2 {[%emt 0:00:08]} Ra2+ {[%emt 0:00:22]} 41. Kf3 {[%emt 0:01:11]} Rxf2+ {[%emt 0:00:07]} 42. Kxf2 {[%emt 0:00:05]} Rg4 {[%emt 0:00:42]} 43. Kf3 {[%emt 0:04:13]} Rf4+ {[%emt 0:00:14]} 44. Kg3 {[%emt 0:00:15]} h5 {[%emt 0:00:44]} 45. Nf5 {[%emt 0:02:34]} Kh7 {[%emt 0:03:39]} 46. Rc6 {[%emt 0:02:20]} Bf2+ {[%emt 0:00:15]} 47. Kh3 {[%emt 0:00:04]} Kg6 {[%emt 0:00:20]} 48. Ne7+ {[%emt 0:01:39]} Kg5 {[%emt 0:01:42]} 49. g3 {[%emt 0:00:01]} Rxe4 {[%emt 0:01:12]} 50. Nd5 {[%emt 0:00:23]} Re2 {[%emt 0:05:31]} 51. Nxf6 {[%emt 0:00:05]} e4 {[%emt 0:01:16]} 52. Nh7+ {[%emt 0:01:28]} Kf5 {[%emt 0:00:08]} 53. Rf6+ {[%emt 0:00:09]} Ke5 {[%emt 0:00:10]} 54. Rh6 {[%emt 0:00:14]} Bg1 {[%emt 0:00:26]} 55. Rxh5+ {[%emt 0:00:14]} Kd4 {[%emt 0:00:16]} 56. Ng5 {[%emt 0:01:03]} Kd3 {[%emt 0:01:30]} 57. Nxe4 {[%emt 0:00:18]} Kxe4 {[%emt 0:00:15]} 58. Kg4 {[%emt 0:00:32]} Bxh2 {[%emt 0:00:08]} 59. Rh8 {[%emt 0:00:34]} Rg2 {[%emt 0:00:56]} 60. Re8+ {[%emt 0:00:24]} Kd5 {[%emt 0:00:10]} 61. Kh3 {[%emt 0:00:11]} Ra2 {[%emt 0:00:05]} 62. Re1 {[%emt 0:02:01]} 1/2-1/2

[Event "28th Bosnjaci Open 2024"]
[Site "Bosnjaci"]
[Date "2024.01.09"]
[Round "9.9"]
[White "Ljikar, Zoran"]
[Black "Biti, Ozren"]
[Result "0-1"]
[ECO "C41"]
[WhiteElo "2200"]
[BlackElo "2308"]
[Annotator "TA"]
[PlyCount "58"]
[EventDate "2024.01.02"]
[EventType "swiss"]
[EventCountry "CRO"]
[SourceTitle "playchess.com"]
[Source "ChessBase"]
[SourceQuality "1"]
[TimeControl "5400+30"]

{[%evp 19,58,9,9,0,7,0,38,-38,-41,-40,-35,-44,-33,-64,-66,-61,-45,-90,-79,-81,-72,-258,-231,-335,-324,-325,-305,-433,-270,-637,-201,-617,-616,-1420,-1395,-1347,-1323,-29977,-29978,-1943,-950]} 1. e4 {[%emt 0:00:02]} d6 {[%emt 0:00:32]} 2. d4 {[%emt 0:00:05]} Nf6 {[%emt 0:00:05]} 3. Nc3 {[%emt 0:00:11]} e5 {[%emt 0:00:08]} 4. Nf3 {[%emt 0:00:07]} Nbd7 {[%emt 0:00:05]} 5. Bc4 {[%emt 0:00:10]} Be7 {[%emt 0:00:04]} 6. O-O {[%emt 0:00:28]} O-O {[%emt 0:00:05]} 7. a4 {[%emt 0:00:14]} a5 {[%emt 0:00:06]} 8. h3 {[%emt 0:00:37]} c6 {[%emt 0:00:05]} 9. Re1 {[%emt 0:00:12] The main line 9.Re1 scores better than 9.Be3.} exd4 {[%emt 0:00:45]} 10. Nxd4 {[%emt 0:14:00]} Nc5 {[%emt 0:01:08]} 11. Qf3 {[%emt 0:08:20] C41: Philidor Defence.} Be6 {[%emt 0:09:47]} 12. Bf1 {[%emt 0:07:13]} Qb6 {[%emt 0:07:01]} 13. Nf5 {[%emt 0:02:06]} ({Better is} 13. Rb1 $14) 13... Bxf5 $15 {[%emt 0:00:26]} 14. exf5 {[%emt 0:02:00] [#]} Rfe8 $146 {[%emt 0:02:00]} ({Predecessor:} 14... Rae8 15. Bf4 d5 16. b3 Nce4 17. Be3 Bc5 18. Nxe4 Rxe4 19. Bd3 Bxe3 20. Rxe3 Rxe3 21. Qxe3 Qxe3 22. fxe3 {½-½ Polzin,R (2462)-Maiwald,J (2516) Bundesliga 0203 2002 (7.5)}) 15. b3 {[%emt 0:00:08]} d5 {[%emt 0:04:25]} 16. Bg5 {[%emt 0:13:07]} Ncd7 {[%emt 0:08:29][%cal Bc5d7,Bd7e5,Be5d3][%mdl 32]} 17. Rad1 {[%emt 0:02:11]} Bb4 {[%emt 0:04:02] [#] Hoping for ...Rxe1.} 18. Rxe8+ {[%emt 0:05:42]} Rxe8 {[%emt 0:01:08]} 19. Na2 {[%emt 0:02:28]} Bc5 {[%emt 0:03:07] Threatens to win with ...Ne5.} 20. Bh4 $2 {[%emt 0:11:12] This move loses the game for White.} (20. Nc3 $17) 20... Ne4 {[%emt 0:06:03] And now ...Ne5 would win.} 21. Bd3 {[%emt 0:04:48] [#] White is weak on the dark squares} (21. g4 {might work better.}) 21... Ne5 $1 $19 {[%emt 0:04:18] A dynamic duo of knights.} 22. Qe2 {[%emt 0:00:53]} Nxd3 {[%emt 0:05:54]} 23. Rxd3 {[%emt 0:05:31]} (23. cxd3 $142 Nd6 24. Qb2 Nxf5 25. Bg5) 23... Nd6 {[%emt 0:01:44][%cal Be4d6,Bd6e4,Be4f2][%mdl 32]} 24. Qf3 {[%emt 0:00:43]} (24. Be7) 24... Re1+ {[%emt 0:01:22]} 25. Kh2 {[%emt 0:00:01]} Ne4 {[%emt 0:00:58] White must now prevent ...Qc7+.} 26. Nc3 {[%emt 0:06:06]} Bd6+ {[%emt 0:06:15]} 27. g3 {[%emt 0:00:56]} Nxf2 {[%emt 0:02:21]} ({And not} 27... Qxf2+ 28. Qxf2 Nxf2 29. Rd2 $17) 28. Rd2 {[%emt 0:00:31]} Ne4 {[%emt 0:01:17][%csl Ge1][%cal Rb6g1]} ({Inferior is} 28... Rh1+ 29. Kg2 Ne4 30. Kxh1 $17) 29. Rg2 {[%emt 0:00:02]} Re3 {[%emt 0:00:27] Weighted Error Value: White=1.25/Black=0.12 (very precise)} (29... Nd2 $142 30. Qd3 Nf1+ 31. Qxf1 Rxf1) 0-1

[Event "28th Bosnjaci Open 2024"]
[Site "Bosnjaci"]
[Date "2024.01.09"]
[Round "9.10"]
[White "Cupic, Lovro"]
[Black "Markovic, Franjo-Josip"]
[Result "1/2-1/2"]
[ECO "C54"]
[WhiteElo "2265"]
[BlackElo "2194"]
[Annotator "TA"]
[PlyCount "84"]
[EventDate "2024.01.02"]
[EventType "swiss"]
[EventCountry "CRO"]
[SourceTitle "playchess.com"]
[Source "ChessBase"]
[SourceQuality "1"]
[TimeControl "5400+30"]

{[%evp 13,84,16,18,18,20,12,29,28,22,17,35,32,28,32,32,28,62,30,42,31,23,27,26,-74,19,19,50,40,50,40,96,52,69,36,56,35,83,79,100,62,72,44,58,31,46,49,47,29,39,31,40,0,0,0,0,0,0,0,0,-137,-13,-51,-43,-53,0,0,0,0,0,0,0,0,0]} 1. e4 {[%emt 0:00:02]} e5 {[%emt 0:03:20]} 2. Nf3 {[%emt 0:02:08]} Nc6 {[%emt 0:00:24]} 3. Bc4 {[%emt 0:00:06]} Nf6 {[%emt 0:00:28]} 4. d3 {[%emt 0:00:05]} Bc5 {[%emt 0:00:18]} 5. c3 {[%emt 0:00:08]} d6 {[%emt 0:00:32]} 6. a4 {[%emt 0:00:09]} a6 {[%emt 0:01:49]} 7. O-O {[%emt 0:00:12]} h6 {[%emt 0:01:34]} 8. Re1 {[%emt 0:00:25]} O-O {[%emt 0:00:30]} 9. Nbd2 {[%emt 0:03:42]} Ba7 {[%emt 0:01:38]} 10. Nf1 {[%emt 0:01:37] White has an edge.} (10. b4 {looks sharper.} Nh5 11. Nb3 Qf6 12. b5) 10... Ne7 {[%emt 0:05:32]} 11. Be3 {[%emt 0:01:54]} c6 {[%emt 0:02:34]} 12. Bxa7 {[%emt 0:14:45]} Rxa7 {[%emt 0:00:05]} 13. d4 {[%emt 0:00:08]} Ng6 {[%emt 0:02:02]} 14. Ng3 {[%emt 0:01:46]} Re8 {[%emt 0:03:06]} 15. h3 {[%emt 0:14:33]} Qc7 {[%emt 0:02:33]} 16. Qd2 {[%emt 0:09:37]} Ra8 {[%emt 0:06:44]} 17. dxe5 {[%emt 0:03:35]} dxe5 {[%emt 0:05:25]} 18. Nf5 {[%emt 0:03:36]} (18. Red1 $11) 18... Be6 {[%emt 0:03:17]} (18... Bxf5 $17 19. exf5 Nf4) 19. Bxe6 {[%emt 0:00:55]} fxe6 {[%emt 0:03:40]} 20. Ne3 {[%emt 0:00:25]} Rad8 {[%emt 0:06:10]} 21. Qc2 {[%emt 0:00:06]} Rd7 {[%emt 0:03:44]} (21... Rf8 $14) 22. g3 {[%emt 0:01:09]} Rf7 {[%emt 0:05:08]} 23. Rad1 {[%emt 0:03:34]} Ref8 {[%emt 0:01:21][%cal Be8f8,Bf8d8,Bd8d7][%mdl 32]} 24. Rd2 {[%emt 0:02:57]} Kh7 {[%emt 0:03:37]} (24... b5 $14) 25. Nh2 $16 {[%emt 0:08:23] White is more active.} Rd8 {[%emt 0:02:14]} 26. Red1 {[%emt 0:02:12]} Rfd7 {[%emt 0:02:17]} 27. Nhf1 {[%emt 0:00:39]} b5 {[%emt 0:03:29]} 28. f3 {[%emt 0:03:45]} Qb6 {[%emt 0:02:54]} 29. Rxd7 {[%emt 0:00:15]} Rxd7 {[%emt 0:00:13]} 30. axb5 {[%emt 0:00:29]} cxb5 {[%emt 0:02:11][%cal Bc6b5,Bb5b4][%mdl 32]} 31. Kg2 {[%emt 0:00:39]} (31. Rxd7 {simplifies} Nxd7 32. Qd2 Qc7 33. b4) 31... b4 {[%emt 0:04:04]} 32. Ng4 {[%emt 0:07:08]} (32. cxb4 {simplifies} Rxd1 33. Nxd1 Qxb4 34. Nf2) 32... Rxd1 {[%emt 0:05:45]} 33. Nxf6+ {[%emt 0:00:08]} gxf6 {[%emt 0:00:05]} 34. Qxd1 {[%emt 0:00:04]} bxc3 {[%emt 0:00:40]} 35. bxc3 $11 {[%emt 0:01:56][%mdl 4096] Endgame. KQN-KQN} a5 {[%emt 0:09:28]} 36. Qc1 {[%emt 0:00:29]} (36. h4 $11 {remains equal.}) 36... Qc5 {[%emt 0:03:14]} (36... h5 $17 {aiming for ...h4.} 37. h4 a4) 37. Ne3 {[%emt 0:00:11]} h5 {[%emt 0:00:11] [#] Strongly threatening ...a4.} 38. Qd2 {[%emt 0:03:04]} a4 {[%emt 0:02:11]} ({Better is} 38... Kg8 $15 39. Nd1 Qa7) 39. Qd7+ {[%emt 0:03:43] The position is equal.} Kh6 {[%emt 0:00:24]} 40. Qd2 {[%emt 0:00:04] Nf5+ would kill now.} Kh7 {[%emt 0:00:27] And now ...Qa7 would win.} 41. Qd7+ {[%emt 0:00:05]} Kh6 {[%emt 0:01:33]} 42. Qd2 {[%emt 0:00:05] [#] Threatening mate with Nf5+.} Kh7 {[%emt 0:04:39] Weighted Error Value: White=0.20 (precise) /Black=0.23 (precise) .  Mistake:       	White=2     	Black=5      Inaccurate:     	White=8     	Black=2      OK:         	White=10    	Black=9      Best:        	White=3     	---} 1/2-1/2

[Event "28th Bosnjaci Open 2024"]
[Site "Bosnjaci"]
[Date "2024.01.09"]
[Round "9.11"]
[White "Jocev, Milan"]
[Black "Nomindalai Tumurbaatar"]
[Result "1/2-1/2"]
[ECO "E63"]
[WhiteElo "2376"]
[BlackElo "2166"]
[Annotator "RC"]
[PlyCount "61"]
[EventDate "2024.01.02"]
[EventType "swiss"]
[EventCountry "CRO"]
[SourceTitle "playchess.com"]
[Source "ChessBase"]
[SourceQuality "1"]
[TimeControl "5400+30"]

1. d4 {[%emt 0:01:41]} Nf6 {[%emt 0:00:12]} 2. c4 {[%emt 0:00:41]} g6 {[%emt 0:00:07]} 3. g3 {[%emt 0:00:09]} Bg7 {[%emt 0:00:11]} 4. Bg2 {[%emt 0:00:06]} d6 {[%emt 0:00:09]} 5. Nf3 {[%emt 0:00:08]} O-O {[%emt 0:00:11]} 6. O-O {[%emt 0:00:07]} Nc6 {[%emt 0:00:09]} 7. Nc3 {[%emt 0:00:10]} a6 {[%emt 0:00:08]} 8. Qd3 {[%emt 0:00:19]} Bd7 {[%emt 0:00:57]} 9. e4 {[%emt 0:02:12]} e5 {[%emt 0:00:38]} 10. dxe5 {[%emt 0:04:11]} dxe5 {[%emt 0:00:12]} 11. Be3 {[%emt 0:01:51]} Bg4 {[%emt 0:01:43]} 12. Nd5 {[%emt 0:02:48]} Bxf3 {[%emt 0:12:50]} 13. Bxf3 {[%emt 0:00:22]} Nd7 {[%emt 0:00:49]} 14. Bg4 {[%emt 0:06:30]} Kh8 {[%emt 0:26:17]} 15. Nxc7 {[%emt 0:12:06]} Nf6 {[%emt 0:06:22]} 16. Qxd8 {[%emt 0:00:46]} Raxd8 {[%emt 0:00:04]} 17. f3 {[%emt 0:05:42]} Nd4 {[%emt 0:03:01]} 18. Bg5 {[%emt 0:05:51]} Nxg4 {[%emt 0:05:27]} 19. fxg4 {[%emt 0:05:45]} f6 {[%emt 0:02:46]} 20. Be3 {[%emt 0:07:30]} Rc8 {[%emt 0:03:27]} 21. Bxd4 {[%emt 0:03:21]} Rxc7 {[%emt 0:01:36]} 22. Bc3 {[%emt 0:00:54]} Rxc4 {[%emt 0:00:12]} 23. Rfe1 {[%emt 0:00:51]} b5 {[%emt 0:02:58]} 24. a3 {[%emt 0:00:25]} Rfc8 {[%emt 0:00:18]} 25. Rad1 {[%emt 0:01:21]} Bf8 {[%emt 0:01:16]} 26. g5 {[%emt 0:00:51]} fxg5 {[%emt 0:16:02]} 27. Bxe5+ {[%emt 0:00:13]} Kg8 {[%emt 0:00:03]} 28. Re2 {[%emt 0:07:29]} Re8 {[%emt 0:00:56]} 29. b3 {[%emt 0:00:14]} Rc6 {[%emt 0:01:54]} 30. Bb2 {[%emt 0:00:08]} Rd6 {[%emt 0:02:52]} 31. Rxd6 {[%emt 0:00:28]} 1/2-1/2

[Event "28th Bosnjaci Open 2024"]
[Site "Bosnjaci"]
[Date "2024.01.09"]
[Round "9.12"]
[White "Alimpic, Aleksa"]
[Black "Sundac, Ivano"]
[Result "1/2-1/2"]
[ECO "D37"]
[WhiteElo "2282"]
[BlackElo "2070"]
[Annotator "TA"]
[PlyCount "58"]
[EventDate "2024.01.02"]
[EventType "swiss"]
[EventCountry "CRO"]
[SourceTitle "playchess.com"]
[Source "ChessBase"]
[SourceQuality "1"]
[TimeControl "5400+30"]

{[%evp 9,58,16,14,13,-2,10,26,10,18,25,26,4,25,0,0,-97,-61,-212,38,39,61,31,38,35,35,26,28,33,39,39,43,12,35,10,13,16,16,17,27,-5,11,14,15,0,0,0,0,0,0,0,8]} 1. d4 {[%emt 0:00:04]} d5 {[%emt 0:00:05]} 2. c4 {[%emt 0:00:11]} e6 {[%emt 0:00:05]} 3. Nf3 {[%emt 0:00:04]} Nf6 {[%emt 0:00:05]} 4. Nc3 {[%emt 0:00:07]} Be7 {[%emt 0:00:09]} 5. Bf4 {[%emt 0:00:11]} O-O {[%emt 0:00:21]} 6. a3 {[%emt 0:00:11]} b6 {[%emt 0:00:50]} 7. e3 {[%emt 0:00:23]} Ba6 {[%emt 0:01:09]} 8. Nb5 {[%emt 0:00:53] Weiß hat minimalen Vorteil.} Bd6 {[%emt 0:02:38]} 9. Nxd6 {[%emt 0:02:44]} cxd6 {[%emt 0:00:06]} 10. Rc1 {[%emt 0:01:15]} h6 {[%emt 0:01:22]} 11. h3 {[%emt 0:01:32]} Qe7 {[%emt 0:01:10]} 12. Qa4 {[%emt 0:03:36]} (12. Bh2 $11 {bleibt in der Remisbreite.}) 12... dxc4 {[%emt 0:01:48]} 13. Bxc4 $2 {[%emt 0:00:14] [#]} (13. Qb4 $15 Qb7 14. Bxc4) 13... Bb7 $2 {[%emt 0:00:14]} (13... Rc8 $19 {[%cal Ob6b5] Droht stark ...b5!} 14. Bxd6 Qd7 (14... Qxd6 $2 15. O-O $19) 15. Qxd7 Nbxd7) 14. Be2 {[%emt 0:04:44]} Nd5 {[%emt 0:07:16]} 15. Bh2 {[%emt 0:01:57] Weiß steht aktiver.} a6 {[%emt 0:01:51]} 16. Qb3 {[%emt 0:08:18]} Nc6 {[%emt 0:07:18]} 17. O-O {[%emt 0:11:14]} b5 {[%emt 0:13:56]} 18. Nd2 {[%emt 0:08:19]} Na5 {[%emt 0:15:48]} 19. Qd3 {[%emt 0:00:25]} Nb6 {[%emt 0:03:54]} 20. Qb1 {[%emt 0:12:56]} Rac8 {[%emt 0:02:55]} 21. Rxc8 {[%emt 0:02:46]} Rxc8 {[%emt 0:01:25]} 22. Rc1 {[%emt 0:00:13]} Nac4 {[%emt 0:01:18]} 23. Nxc4 {[%emt 0:02:10]} bxc4 {[%emt 0:00:31]} 24. Qc2 {[%emt 0:04:16]} Qg5 {[%emt 0:01:31][%csl Gb7][%cal Rg5g2] [#] Die Stellung ist ausgeglichen.} (24... d5 {vereinfacht} 25. Rb1 Bc6 26. Qc3 Bb5) 25. Bg3 {[%emt 0:00:57]} (25. Bxd6 $2 Qxg2#) 25... Qb5 {[%emt 0:01:45]} 26. Bxd6 {[%emt 0:05:35] Zielt auf Bc5 ab.} Bxg2 $1 {[%emt 0:00:07]} 27. Kxg2 {[%emt 0:02:41]} Qc6+ {[%emt 0:00:15]} 28. Bf3 {[%emt 0:00:20]} Qxd6 {[%emt 0:00:05]} 29. Qe4 {[%emt 0:05:28]} Rc7 {[%emt 0:04:32] Gewichteter Fehlerwert: Weiß=0.23 (präzise) /Schwarz=0.26 (präzise) .  Gewinn verpasst:   	---       	Schwarz=1     Fehler:       	Weiß=2     	---        Ungenau:       	Weiß=3     	Schwarz=1     OK:         	Weiß=8     	Schwarz=5     Stark:        	---       	Schwarz=1} 1/2-1/2

[Event "28th Bosnjaci Open 2024"]
[Site "Bosnjaci"]
[Date "2024.01.09"]
[Round "9.13"]
[White "Bobanac, Miro"]
[Black "Konjevic, Nikola"]
[Result "1/2-1/2"]
[ECO "A12"]
[WhiteElo "2238"]
[BlackElo "2035"]
[Annotator "TA"]
[PlyCount "98"]
[EventDate "2024.01.02"]
[EventType "swiss"]
[EventCountry "CRO"]
[SourceTitle "playchess.com"]
[Source "ChessBase"]
[SourceQuality "1"]
[TimeControl "5400+30"]

{[%evp 10,98,22,7,57,54,69,71,82,68,78,49,60,24,69,56,64,68,64,36,43,60,48,14,55,55,49,18,29,29,33,10,18,8,28,17,20,0,33,31,43,24,41,35,45,8,8,8,10,8,8,7,7,6,116,120,106,116,116,109,116,109,129,112,127,91,101,91,129,119,112,91,91,91,91,91,104,68,75,0,0,0,0,0,0,0,0,0,0,0,0]} 1. Nf3 {[%emt 0:00:08]} d5 {[%emt 0:00:05]} 2. g3 {[%emt 0:02:08]} Bg4 {[%emt 0:03:11]} 3. Bg2 {[%emt 0:00:59]} e6 {[%emt 0:00:50]} 4. c4 {[%emt 0:01:21]} c6 {[%emt 0:01:03]} 5. O-O {[%emt 0:01:09]} Nf6 {[%emt 0:01:24]} 6. b3 {[%emt 0:01:06]} dxc4 {[%emt 0:16:18] A12: English Opening: 1...c6 with b3 by White.} ({Black should play} 6... Nbd7 $11) 7. bxc4 $14 {[%emt 0:00:16]} Bxf3 {[%emt 0:00:05]} 8. Bxf3 {[%emt 0:01:39] [#]} e5 $146 {[%emt 0:00:10] White is better.} ({Predecessor:} 8... Qd4 9. Qb3 Nbd7 10. Bb2 Qb6 11. Qc2 Bc5 12. Nc3 Bd4 13. Na4 Qa6 14. Bxd4 e5 15. Nc5 {1-0 Salokangas,H (2192)-Boissonnier,K (2038) FIN-chT1C 0910 2009 (5.4)}) 9. Qb3 {[%emt 0:02:50]} Qc7 {[%emt 0:00:19]} 10. Nc3 {[%emt 0:02:09]} Nbd7 {[%emt 0:00:25]} 11. d3 {[%emt 0:00:50]} Bd6 {[%emt 0:13:28]} 12. Rb1 {[%emt 0:11:44] White is more active.} Nc5 {[%emt 0:02:25]} 13. Qc2 {[%emt 0:00:09]} O-O {[%emt 0:01:04]} 14. Na4 {[%emt 0:05:43]} Rfe8 {[%emt 0:14:17]} 15. Nxc5 {[%emt 0:04:01]} Bxc5 {[%emt 0:00:03]} 16. Rb3 {[%emt 0:01:45]} h6 {[%emt 0:04:48]} 17. Bb2 {[%emt 0:05:08]} Rad8 {[%emt 0:03:57]} 18. Rb1 {[%emt 0:07:36]} Qe7 {[%emt 0:02:07]} 19. e3 {[%emt 0:06:33]} Rd6 {[%emt 0:12:21]} 20. Be2 {[%emt 0:01:27] This pair of bishops is nice.} b6 {[%emt 0:04:37]} 21. a4 {[%emt 0:02:49][%cal Ba2a4,Ba4a5][%mdl 32]} Nd7 {[%emt 0:01:54]} 22. Bg4 {[%emt 0:07:02]} Rd8 {[%emt 0:02:04]} 23. a5 {[%emt 0:03:15]} Nf6 {[%emt 0:01:42]} 24. Be2 {[%emt 0:00:23]} Qe6 {[%emt 0:03:38]} 25. Ba3 {[%emt 0:05:43]} Nd7 {[%emt 0:00:48]} 26. axb6 {[%emt 0:02:43]} axb6 {[%emt 0:00:05]} 27. Bxc5 {[%emt 0:04:47]} Nxc5 {[%emt 0:00:19]} 28. Ra3 {[%emt 0:00:39]} Qf5 {[%emt 0:02:16]} 29. Rxb6 {[%emt 0:02:56]} Nxd3 {[%emt 0:00:30]} 30. Rxd3 {[%emt 0:01:32]} (30. Bxd3 {is interesting.} Rxd3 31. Rxd3 Rxd3 32. Rxc6 Qe4 33. h4) 30... Rxd3 {[%emt 0:00:28]} 31. Bxd3 {[%emt 0:00:13]} Qxd3 {[%emt 0:00:26]} (31... Rxd3 $11 32. Rxc6 Qe4) 32. Qxd3 $16 {[%emt 0:00:39]} Rxd3 {[%emt 0:00:03]} 33. Rxc6 $11 {[%emt 0:00:13][%mdl 4096] Endgame KR-KR} Rc3 {[%emt 0:00:14]} 34. g4 {[%emt 0:01:56]} Kf8 {[%emt 0:03:11]} 35. Rc7 {[%emt 0:00:13]} g6 {[%emt 0:02:33]} 36. Kg2 {[%emt 0:00:13]} Kg7 {[%emt 0:00:02]} 37. Kf3 {[%emt 0:02:42]} Kf6 {[%emt 0:00:06]} 38. h4 {[%emt 0:01:44]} Rc2 {[%emt 0:01:58]} 39. Rc6+ {[%emt 0:01:06]} Ke7 {[%emt 0:01:04]} 40. h5 {[%emt 0:01:39]} gxh5 {[%emt 0:00:01]} 41. gxh5 {[%emt 0:00:12]} ({Reject} 41. Rxh6 $6 hxg4+ 42. Kxg4 Rxf2 $11) 41... Kd7 {[%emt 0:00:53] Prevents c5.} 42. Rxh6 {[%emt 0:00:35]} Rxc4 {[%emt 0:00:03]} 43. Rf6 {[%emt 0:02:37]} Ke7 {[%emt 0:00:19]} 44. Rf5 {[%emt 0:00:09]} (44. Ra6 $16) 44... Ke6 $1 {[%emt 0:01:41] The position is equal.} 45. e4 {[%emt 0:00:21] [#] h6 would be deadly.} f6 {[%emt 0:01:53]} 46. h6 {[%emt 0:00:40]} Kf7 $1 {[%emt 0:00:53]} 47. h7 {[%emt 0:00:47]} Rc8 {[%emt 0:00:07]} 48. Rh5 {[%emt 0:00:26]} Rh8 $1 {[%emt 0:00:02]} 49. Kg4 {[%emt 0:04:09] [#] Intending Kf5 and mate.} (49. Rh6 $5) 49... Kg6 {[%emt 0:00:02] Weighted Error Value: White=0.13 (very precise) /Black=0.13 (very precise)} 1/2-1/2